bitfinex-derivatives/quotes_SOLF0:USTF0_20260105
["timestamp","ask_amount","ask_price","bid_price","bid_amount"]
[1767623786388,105.0237,133.38,133.26,0.33473385]
[1767623786678,193.6339,133.39,133.28,0.33473385]
[1767623786679,6.7521,133.37,133.28,0.33473385]
[1767623787380,6.751,133.39,133.29,0.33473385]
[1767623787580,105.0141,133.39,133.29,0.33473385]
[1767623787987,6.752,133.37,133.29,0.33473385]
[1767623788273,193.6207,133.41,133.29,0.33473385]
[1767623788581,193.6337,133.41,133.29,0.33473385]
[1767623789069,105.0243,133.39,133.29,0.33473385]
[1767623789375,105.0243,133.39,133.27,88.64]
[1767623789581,104.988,133.44,133.3,0.33473385]
[1767623789787,198.3020997,133.46,133.31,0.33473385]
[1767623790080,104.9627,133.47,133.35,0.33473385]
[1767623790286,104.9411,133.5,133.37,0.33473385]
[1767623790480,104.9471,133.49,133.39,0.33473385]
[1767623790777,104.9578,133.48,133.35,88.97740689]
[1767623790968,104.9691,133.46,133.35,88.97740689]
[1767623791174,193.5891,133.46,133.35,88.97740689]
[1767623791370,6.7497,133.43,133.35,0.33740689]
[1767623791877,193.5891,133.46,133.35,0.33740689]
[1767623792079,104.9884,133.44,133.33,88.64]
[1767623792487,104.9884,133.44,133.33,88.97740689]
[1767623792785,193.5884,133.44,133.33,88.97740689]
[1767623793280,193.5884,133.44,133.33,0.33740689]
[1767623793484,104.9945,133.43,133.33,0.33740689]
[1767623793670,6.7506,133.41,133.33,0.33740689]
[1767623794180,104.9945,133.43,133.31,88.62]
[1767623794181,105.0001,133.42,133.31,88.62]
[1767623794572,104.9945,133.43,133.29,0.33740689]
[1767623794768,6.751,133.4,133.31,7.09280689]
[1767623794975,193.5945,133.43,133.31,7.09280689]
[1767623795284,88.6,133.44,133.33,7.09180689]
[1767623795483,193.5883,133.44,133.33,0.33740689]
[1767623795680,104.9883,133.44,133.33,0.33740689]
[1767623795980,88.6,133.43,133.33,0.33740689]
[1767623796375,6.7501,133.42,133.33,0.33740689]
[1767623797481,88.6,133.43,133.33,0.33740689]
[1767623798188,88.6,133.47,133.34,0.33740689]
[1767623798374,104.9686,133.46,133.34,0.33740689]
[1767623798680,104.9686,133.46,133.35,0.33740689]
[1767623798681,6.7483,133.46,133.35,0.33740689]
[1767623799379,6.7473,133.48,133.36,0.33740689]
[1767623799582,4.7126997,133.51,133.38,0.33740689]
[1767623799783,4.7126997,133.51,133.37,88.62]
[1767623799784,93.3126997,133.51,133.39,88.95740689]
[1767623799986,6.747,133.48,133.39,95.70870689]
[1767623800284,104.9169,133.53,133.4,0.33740689]
[1767623800585,6.7453,133.52,133.41,0.33740689]
[1767623800980,6.7453,133.52,133.42,88.62]
[1767623801286,193.5083,133.54,133.42,88.62]
[1767623801287,6.7456,133.51,133.42,0.33740689]
[1767623801472,193.4883,133.54,133.42,0.33740689]
[1767623801878,6.7448,133.53,133.43,7.08650689]
[1767623802374,104.9167,133.53,133.43,0.33740689]
[1767623802579,104.9077,133.54,133.43,0.33740689]
[1767623802787,88.58,133.54,133.43,0.33740689]
[1767623802985,6.7436,133.55,133.44,6.7487]
[1767623803175,6.7436,133.55,133.42,193.5959]
[1767623803176,104.8904,133.56,133.45,0.33740689]
[1767623803800,6.7442,133.54,133.45,0.33740689]
[1767623804282,193.4704,133.56,133.45,0.33740689]
[1767623804283,104.8982,133.55,133.45,0.33740689]
[1767623804478,6.7445,133.53,133.45,0.33740689]
[1767623804686,104.8454,133.62,133.48,0.33740689]
[1767623804985,193.4254,133.62,133.49,88.91740689]
[1767623805296,193.3958,133.63,133.5,0.33740689]
[1767623805478,104.8349,133.64,133.51,0.33740689]
[1767623805787,6.7396,133.63,133.53,0.33740689]
[1767623805987,104.8186,133.66,133.53,0.33740689]
[1767623806183,6.7384,133.65,133.54,0.33740689]
[1767623806380,104.8278,133.64,133.54,0.33740689]
[1767623806580,104.8434,133.62,133.51,88.58]
[1767623806776,104.8434,133.62,133.51,88.91740689]
[1767623807179,104.8371,133.63,133.47,4.7126997]
[1767623807180,104.8586,133.6,133.47,4.7126997]
[1767623807386,104.8586,133.6,133.49,0.33740689]
[1767623807692,104.8512,133.61,133.49,0.33740689]
[1767623807987,109.5359997,133.65,133.5,0.33740689]
[1767623808183,6.7411,133.6,133.54,0.05441831]
[1767623808378,104.8409,133.63,133.54,0.05441831]
[1767623808690,104.8287,133.64,133.51,0.33740689]
[1767623808881,6.7402,133.62,133.52,0.33740689]
[1767623809283,88.54,133.63,133.52,0.33740689]
[1767623809482,106.11770721,133.66,133.52,0.33740689]
[1767623809684,106.11770721,133.66,133.56,0.05428637]
[1767623809685,1.30290721,133.66,133.56,0.05428637]
[1767623809884,88.54,133.68,133.57,0.33740689]
[1767623810192,35.34189822,133.69,133.6,0.33740689]
[1767623810592,35.34189822,133.69,133.61,0.05533115]
[1767623810898,109.4495997,133.76,133.62,0.33740689]
[1767623811093,104.7114,133.79,133.65,0.33740689]
[1767623811398,6.7315,133.79,133.67,0.33740689]
[1767623811788,104.7097,133.79,133.68,88.54]
[1767623811990,104.7097,133.79,133.71,0.04783696]
[1767623812188,193.2097,133.79,133.71,0.04783696]
[1767623812694,193.21,133.79,133.71,0.04783696]
[1767623812987,6.7321,133.78,133.71,0.04783696]
[1767623813178,104.7339,133.76,133.63,5.04120651]
[1767623813379,193.2339,133.76,133.64,88.52]
[1767623813992,193.2339,133.76,133.63,0.32850681]
[1767623813993,6.7341,133.74,133.63,88.82850681]
[1767623814890,95.213,133.76,133.64,0.32850681]
[1767623815484,6.7319,133.78,133.66,0.32850681]
[1767623815887,6.7319,133.78,133.66,88.82850681]
[1767623816086,95.1919,133.78,133.66,88.82850681]
[1767623816593,95.1919,133.78,133.67,0.32850681]
[1767623818080,6.7326,133.77,133.67,0.32850681]
[1767623818286,104.7419,133.75,133.63,5.04120651]
[1767623818486,106.02178883,133.78,133.64,0.32850681]
[1767623818801,193.1601,133.78,133.64,0.32850681]
[1767623819091,88.44,133.78,133.67,0.32850681]
[1767623819588,104.6972,133.81,133.67,0.32850681]
[1767623819784,104.7097,133.79,133.67,0.32850681]
[1767623820183,109.4035997,133.82,133.67,0.32850681]
[1767623820491,104.6498,133.87,133.74,0.32850681]
[1767623820788,104.663,133.85,133.75,88.46]
[1767623820988,6.7291,133.84,133.75,0.32392118]
[1767623821388,6.7291,133.84,133.73,88.44]
[1767623821389,104.6805,133.83,133.73,88.44]
[1767623821594,104.7051,133.8,133.67,0.32392118]
[1767623821794,104.7051,133.8,133.68,88.44]
[1767623821994,193.1096,133.82,133.7,0.32392118]
[1767623821995,88.42,133.82,133.7,0.32392118]
[1767623822492,104.6713,133.84,133.69,104.7843]
[1767623822493,104.6713,133.84,133.71,88.76392118]
[1767623822792,104.648,133.87,133.76,0.32392118]
[1767623822998,6.7285,133.85,133.77,88.44]
[1767623823288,193.0426,133.88,133.77,88.44]
[1767623823490,104.6121,133.92,133.79,0.32392118]
[1767623823691,104.6121,133.92,133.8,88.74392118]
[1767623823893,104.5889,133.95,133.82,0.32392118]
[1767623824194,104.6049,133.93,133.83,0.32392118]
[1767623824392,104.6169,133.91,133.79,0.32392118]
[1767623824596,104.6247,133.9,133.79,0.32392118]
[1767623824897,104.655,133.86,133.75,0.32392118]
[1767623825103,104.649,133.87,133.75,0.32392118]
[1767623825598,104.6643,133.85,133.75,0.32392118]
[1767623825987,6.728,133.86,133.76,0.32392118]
[1767623826197,104.6659,133.85,133.74,88.4]
[1767623826397,104.6862,133.82,133.68,0.32392118]
[1767623826590,104.6862,133.82,133.69,6.736]
[1767623826791,88.36,133.81,133.71,0.32392118]
[1767623827094,6.728,133.86,133.76,6.7326]
[1767623827292,104.62,133.91,133.76,6.7326]
[1767623827498,104.62,133.91,133.76,7.05652118]
[1767623827699,88.36,133.88,133.76,7.05652118]
[1767623827899,88.36,133.88,133.76,95.43652118]
[1767623828094,6.728,133.86,133.76,88.70392118]
[1767623828300,104.647,133.87,133.76,88.70392118]
[1767623828492,88.36,133.86,133.76,88.38]
[1767623828697,6.7285,133.85,133.76,88.38]
[1767623828898,95.0885,133.85,133.8,0.05582666]
[1767623829097,88.36,133.86,133.8,0.05582666]
[1767623829304,95.088,133.86,133.8,0.05582666]
[1767623829602,104.6321,133.89,133.76,88.38]
[1767623829794,6.7275,133.87,133.77,6.7323]
[1767623830193,88.34,133.87,133.76,88.70392118]
[1767623830504,88.34,133.87,133.77,6.7321]
[1767623831004,6.7291,133.84,133.73,6.7338]
[1767623831204,104.6707,133.84,133.72,0.32392118]
[1767623831395,88.34,133.83,133.72,0.32392118]
[1767623831596,88.34,133.83,133.73,6.7339]
[1767623831792,193.0261,133.82,133.71,88.36]
[1767623832097,88.34,133.81,133.71,88.36]
[1767623832299,88.34,133.81,133.69,88.36]
[1767623832699,88.34,133.84,133.71,0.32392118]
[1767623832900,104.6504,133.87,133.72,0.32392118]
[1767623833099,88.34,133.86,133.73,0.32392118]
[1767623833300,104.6364,133.89,133.75,0.32392118]
[1767623833501,104.613,133.92,133.77,0.32392118]
[1767623833700,112.21587828,133.93,133.78,88.73938477]
[1767623833903,104.6037,133.93,133.79,0.32392118]
[1767623834198,88.34,133.92,133.8,88.68392118]
[1767623834402,104.6171,133.91,133.8,88.68392118]
[1767623834701,104.6283,133.9,133.76,0.32392118]
[1767623834906,104.6171,133.91,133.78,0.32392118]
[1767623835199,88.32,133.93,133.81,0.32392118]
[1767623835403,6.725,133.92,133.82,6.7294]
[1767623835606,88.32,133.93,133.82,88.36]
[1767623835902,6.7269,133.88,133.78,6.7315]
[1767623836101,104.6132,133.92,133.79,0.32392118]
[1767623836301,0.05197152,133.84,133.79,0.32392118]
[1767623836499,104.6256,133.9,133.79,0.32392118]
[1767623836899,104.5944,133.94,133.8,0.32392118]
[1767623837099,6.7251,133.92,133.81,6.7299]
[1767623837300,104.6158,133.91,133.8,0.32392118]
[1767623837499,104.6084,133.92,133.8,0.32392118]
[1767623837695,6.725,133.92,133.82,0.32392118]
[1767623838197,104.6107,133.92,133.82,0.32392118]
[1767623838397,104.6158,133.91,133.82,0.32392118]
[1767623838594,104.6245,133.9,133.78,88.66392118]
[1767623839095,104.6245,133.9,133.75,112.34747828]
[1767623839096,104.6244,133.9,133.76,0.32392118]
[1767623839405,88.3,133.9,133.78,0.32392118]
[1767623839606,104.5959,133.94,133.8,7.05452118]
[1767623839800,1.30013263,133.95,133.81,0.32392118]
[1767623840009,192.896,133.94,133.82,0.32392118]
[1767623840197,192.896,133.94,133.82,88.64392118]
[1767623840198,192.8958,133.94,133.82,88.64392118]
[1767623840396,104.6015,133.93,133.82,88.64392118]
[1767623840601,104.5654,133.98,133.85,0.32392118]
[1767623840798,6.7223,133.97,133.87,6.727]
[1767623841004,104.5774,133.96,133.85,0.32392118]
[1767623841206,104.5847,133.95,133.85,0.32392118]
[1767623841405,104.6012,133.93,133.82,88.32]
[1767623841715,104.6176,133.91,133.78,88.32]
[1767623842013,6.727,133.88,133.78,88.64392118]
[1767623842199,88.3,133.9,133.79,0.32392118]
[1767623842404,88.3,133.9,133.81,0.32392118]
[1767623842708,88.3,133.91,133.81,0.32392118]
[1767623843205,88.28,133.9,133.81,0.32392118]
[1767623843406,104.5866,133.95,133.81,104.6893]
[1767623843607,104.5866,133.95,133.8,104.6988]
[1767623843608,104.6004,133.93,133.82,0.32392118]
[1767623844117,88.28,133.92,133.82,0.32392118]
[1767623844913,6.726,133.9,133.82,0.32392118]
[1767623845208,88.28,133.89,133.82,0.32392118]
[1767623845413,88.28,133.89,133.79,88.32]
[1767623845808,88.28,133.89,133.78,0.32392118]
[1767623845809,6.727,133.88,133.78,0.32392118]
[1767623846010,88.28,133.89,133.78,0.32392118]
[1767623846312,104.6107,133.92,133.78,0.32392118]
[1767623846506,88.28,133.91,133.78,7.05552118]
[1767623846913,88.28,133.91,133.78,0.32392118]
[1767623847109,6.7259,133.9,133.79,6.7311]
[1767623847314,88.28,133.89,133.79,6.7311]
[1767623847512,88.28,133.88,133.8,0.32392118]
[1767623847719,104.6189,133.91,133.77,0.32392118]
[1767623847924,104.58,133.96,133.81,0.32392118]
[1767623848217,8.91197099,133.98,133.84,104.98782118]
[1767623848514,88.28,133.97,133.84,0.32392118]
[1767623848824,1.29979271,133.98,133.84,0.32392118]
[1767623848825,88.28,133.96,133.84,0.32392118]
[1767623849114,1.29979271,133.98,133.84,104.98922118]
[1767623849115,88.28,133.95,133.84,104.98922118]
[1767623849317,88.28,133.95,133.84,0.32392118]
[1767623849521,1.29979271,133.98,133.86,0.32392118]
[1767623849715,88.28,133.97,133.86,0.32392118]
[1767623850014,88.28,133.97,133.87,6.7271]
[1767623850217,88.28,133.96,133.87,6.7271]
[1767623851215,6.7234,133.95,133.85,6.728]
[1767623851513,1.29979271,133.98,133.85,0.3184326]
[1767623851716,88.28,133.97,133.86,104.9711326]
[1767623852113,88.28,133.97,133.82,104.6798]
[1767623852318,88.26,133.96,133.84,0.3184326]
[1767623852918,88.26,133.95,133.84,0.3184326]
[1767623853314,88.26,133.94,133.84,0.3184326]
[1767623853814,104.5738,133.97,133.84,0.3184326]
[1767623854016,88.26,133.96,133.84,0.3184326]
[1767623854413,88.26,133.95,133.84,0.3184326]
[1767623854716,88.26,133.95,133.82,104.6821]
[1767623854717,104.5889,133.95,133.81,88.6184326]
[1767623854911,88.26,133.94,133.81,88.6184326]
[1767623855114,88.26,133.94,133.81,0.3184326]
[1767623855327,104.6035,133.93,133.81,0.3184326]
[1767623855619,104.601,133.93,133.81,0.3184326]
[1767623855920,94.9851,133.92,133.83,6.7292]
[1767623856114,94.9851,133.92,133.81,0.3184326]
[1767623857122,6.7242,133.94,133.83,6.729]
[1767623857318,88.26,133.93,133.83,7.0474326]
[1767623857514,104.5722,133.97,133.83,0.3184326]
[1767623857718,6.7239,133.94,133.85,6.728]
[1767623857919,88.26,133.93,133.83,0.3184326]
[1767623858118,1.29979271,133.98,133.86,0.3184326]
[1767623858323,161.22886542,134.01,133.88,6.7267]
[1767623858510,88.26,134.0,133.88,6.7267]
[1767623858917,6.7223,133.97,133.93,0.04940151]
[1767623859116,88.26,133.96,133.86,7.0458326]
[1767623859317,0.05418594,133.95,133.86,0.3184326]
[1767623859623,0.05418594,133.95,133.86,7.0461326]
[1767623859814,88.26,133.96,133.86,7.0461326]
[1767623860017,88.26,133.95,133.86,0.3184326]
[1767623860217,88.26,133.95,133.86,7.0457326]
[1767623860420,0.05241785,133.92,133.86,7.0457326]
[1767623860616,0.05241785,133.92,133.86,0.3184326]
[1767623860822,88.26,133.96,133.86,0.3184326]
[1767623861628,94.983,133.96,133.86,0.3184326]
[1767623861919,56.68806542,134.01,133.88,104.6361]
[1767623862132,56.68806542,134.01,133.89,0.3184326]
[1767623862133,6.7213,133.99,133.89,0.3184326]
[1767623862316,161.22916542,134.01,133.89,0.3184326]
[1767623862619,88.24,134.0,133.89,0.3184326]
[1767623863214,56.68806542,134.01,133.89,0.3184326]
[1767623863421,144.92806542,134.01,133.89,0.3184326]
[1767623864222,6.7218,133.98,133.89,0.3184326]
[1767623864627,56.68806542,134.01,133.92,6.7245]
[1767623864925,104.4934,134.07,133.92,0.3184326]
[1767623864926,104.4997,134.06,133.92,0.3184326]
[1767623865224,6.7205,134.01,133.92,0.3184326]
[1767623865829,6.7208,134.0,133.92,0.3184326]
[1767623866031,104.5481,134.0,133.89,0.3184326]
[1767623866230,192.7934,133.99,133.88,88.26]
[1767623866823,104.5338,134.02,133.89,0.3184326]
[1767623867024,88.24,134.01,133.89,0.3184326]
[1767623867426,6.7217,133.99,133.9,6.7256]
[1767623867833,88.24,134.0,133.88,88.26]
[1767623868033,6.7217,133.99,133.88,88.26]
[1767623868229,6.7217,133.99,133.89,0.3184326]
[1767623868736,6.7218,133.98,133.89,0.3184326]
[1767623869533,6.7223,133.97,133.89,0.3184326]
[1767623869829,1.29908914,134.05,133.92,0.3184326]
[1767623870141,88.22,134.04,133.92,0.3184326]
[1767623871144,6.7203,134.01,133.92,0.3184326]
[1767623871336,104.5391,134.01,133.89,0.3184326]
[1767623871537,104.5455,134.0,133.89,0.3184326]
[1767623871739,88.22,133.99,133.89,0.3184326]
[1767623871938,0.0567099,133.96,133.9,0.3184326]
[1767623873039,0.0567099,133.96,133.9,7.0441326]
[1767623873645,0.0567099,133.96,133.91,6.7252]
[1767623873837,0.0567099,133.96,133.9,0.3184326]
[1767623874240,0.0567099,133.96,133.9,7.0440326]
[1767623874636,104.493,134.07,133.91,0.34511526]
[1767623874840,104.5113,134.05,133.92,0.39514885]
[1767623875143,1.29904065,134.06,133.94,0.34511526]
[1767623875445,88.22,134.05,133.94,0.34511526]
[1767623875640,6.7188,134.04,133.94,0.34511526]
[1767623876146,104.4585,134.12,133.98,0.34511526]
[1767623876449,88.22,134.09,133.98,7.06681526]
[1767623876743,192.7009,134.09,133.95,88.58511526]
[1767623876935,192.7066,134.08,133.96,7.06771526]
[1767623877139,88.22,134.08,133.96,0.34511526]
[1767623877644,88.22,134.07,133.96,0.34511526]
[1767623877844,88.22,134.07,133.98,6.7215]
[1767623878052,88.2,134.07,133.98,6.7215]
[1767623878251,94.9174,134.07,133.97,6.7221]
[1767623878648,88.2,134.07,133.97,0.34511526]
[1767623879148,88.2,134.06,134.0,6.7206]
[1767623879542,88.2,134.06,133.97,104.90761526]
[1767623879543,88.2,134.06,133.98,6.7214]
[1767623879742,6.7164,134.09,133.98,6.7214]
[1767623879943,6.7155,134.11,133.98,0.34511526]
[1767623880149,1.29845901,134.12,134.01,0.34511526]
[1767623880345,112.03747828,134.16,134.03,104.5183]
[1767623880346,7.61217828,134.16,134.03,104.5183]
[1767623880543,88.2,134.15,134.03,0.34511526]
[1767623880754,1.29802313,134.16,134.04,104.5135]
[1767623880955,1.29802313,134.16,134.06,104.83625537]
[1767623881247,88.2,134.17,134.06,104.83625537]
[1767623881648,1.29761172,134.21,134.1,6.7157]
[1767623881849,104.3468,134.26,134.12,0.33945537]
[1767623881850,111.95897828,134.26,134.12,0.33945537]
[1767623882048,88.18,134.25,134.12,0.33945537]
[1767623882246,104.3664,134.23,134.08,104.82105537]
[1767623882451,104.3749,134.22,134.08,88.55945537]
[1767623882645,6.7116,134.19,134.08,0.33945537]
[1767623882846,88.18,134.2,134.09,104.81385537]
[1767623883147,1.29715223,134.25,134.13,7.05335537]
[1767623883348,88.18,134.24,134.13,0.33945537]
[1767623883856,1.29705553,134.26,134.14,104.77155537]
[1767623884043,88.16,134.27,134.16,0.33945537]
[1767623884457,92.82248009,134.27,134.14,88.2]
[1767623884645,109.00058009,134.27,134.14,88.2]
[1767623884848,88.16,134.26,134.13,0.33945537]
[1767623885155,88.16,134.25,134.13,0.33945537]
[1767623885448,112.31894138,134.3,134.18,0.04987798]
[1767623885642,88.16,134.29,134.18,0.04987798]
[1767623885847,1.29674138,134.3,134.19,0.33945537]
[1767623886050,57.50436311,134.32,134.2,0.33945537]
[1767623886250,4.66248009,134.35,134.23,104.70515537]
[1767623886448,88.14,134.36,134.24,0.33945537]
[1767623886646,104.2584,134.37,134.24,0.33945537]
[1767623886647,88.14,134.37,134.26,104.68065537]
[1767623886846,104.2139,134.43,134.28,0.33945537]
[1767623887060,104.207,134.44,134.31,0.33945537]
[1767623887061,4.66248009,134.44,134.31,0.33945537]
[1767623887355,104.2072,134.44,134.33,0.33945537]
[1767623887543,104.2145,134.43,134.33,0.33945537]
[1767623887748,104.2301,134.41,134.29,0.33945537]
[1767623887964,104.2541,134.38,134.25,0.33945537]
[1767623888252,6.7036,134.35,134.25,88.14]
[1767623888446,110.9786,134.35,134.25,88.14]
[1767623888643,108.95388009,134.33,134.21,0.33945537]
[1767623888855,104.2972,134.32,134.21,0.33945537]
[1767623889065,104.2749,134.35,134.21,0.33945537]
[1767623889361,88.1,134.35,134.25,0.33945537]
[1767623889562,88.1,134.36,134.25,0.33945537]
[1767623889854,192.3686,134.36,134.25,0.33945537]
[1767623890044,108.90418009,134.4,134.26,0.33945537]
[1767623890250,104.2218,134.42,134.3,0.33945537]
[1767623890446,104.2218,134.42,134.31,88.12]
[1767623890757,6.7007,134.4,134.31,88.12]
[1767623890955,104.2321,134.41,134.28,88.45945537]
[1767623891151,89.39546216,134.42,134.25,104.3507]
[1767623891152,104.2526,134.38,134.25,88.43945537]
[1767623891351,104.2687,134.36,134.25,88.43945537]
[1767623891557,104.2428,134.39,134.26,0.33945537]
[1767623891756,104.2609,134.37,134.25,88.1]
[1767623891947,108.92338009,134.37,134.23,104.70545537]
[1767623892147,104.2397,134.4,134.26,0.33945537]
[1767623892356,6.7007,134.4,134.28,0.33945537]
[1767623892660,6.7007,134.4,134.28,88.43945537]
[1767623892860,6.7007,134.4,134.29,0.33945537]
[1767623893056,104.1842,134.47,134.32,0.33945537]
[1767623893262,104.1842,134.47,134.34,0.33945537]
[1767623893656,104.176,134.48,134.35,88.41945537]
[1767623893863,104.1959,134.45,134.35,88.41945537]
[1767623894055,1.29507648,134.47,134.35,88.41945537]
[1767623894358,192.2405,134.47,134.35,88.41945537]
[1767623894549,192.2405,134.47,134.31,104.3013]
[1767623894550,104.2228,134.42,134.31,0.33945537]
[1767623894862,104.2273,134.41,134.27,0.33945537]
[1767623895060,88.04,134.4,134.27,0.33945537]
[1767623895249,104.2599,134.37,134.28,88.06]
[1767623895451,104.2697,134.36,134.26,88.06]
[1767623895849,104.2547,134.38,134.26,88.39945537]
[1767623896156,104.2742,134.35,134.26,0.33945537]
[1767623896359,104.2664,134.36,134.22,0.33945537]
[1767623896360,104.2997,134.32,134.22,0.33945537]
[1767623896559,192.3449,134.31,134.18,7.05115537]
[1767623896756,88.04,134.32,134.2,0.33945537]
[1767623896955,88.04,134.32,134.21,88.04]
[1767623897153,192.3191,134.32,134.21,88.04]
[1767623897464,104.2819,134.34,134.21,88.37945537]
[1767623897767,88.02,134.36,134.24,0.33945537]
[1767623897951,88.02,134.38,134.25,0.33945537]
[1767623898154,104.2578,134.37,134.26,88.37945537]
[1767623898461,104.2689,134.36,134.26,88.04]
[1767623898649,6.7036,134.35,134.24,88.37945537]
[1767623898857,198.9977,134.35,134.24,88.37945537]
[1767623899059,104.2974,134.32,134.21,88.04]
[1767623899257,199.0308,134.31,134.21,88.04]
[1767623899458,4.66248009,134.33,134.21,88.04]
[1767623899759,104.2813,134.34,134.22,0.33945537]
[1767623899951,4.66248009,134.35,134.22,0.33945537]
[1767623900156,192.3016,134.34,134.22,0.33945537]
[1767623900350,192.3016,134.34,134.18,104.4017]
[1767623900351,104.3053,134.31,134.18,95.09105537]
[1767623900566,88.02,134.3,134.18,95.09105537]
[1767623900769,94.7261,134.3,134.18,88.37945537]
[1767623901063,104.2816,134.34,134.19,0.33945537]
[1767623901265,108.94408009,134.34,134.2,0.33945537]
[1767623901462,88.02,134.33,134.22,7.04915537]
[1767623901663,6.7036,134.35,134.23,0.33945537]
[1767623901857,6.7036,134.35,134.22,104.3718]
[1767623901858,108.92148009,134.37,134.24,0.33945537]
[1767623902058,88.02,134.36,134.24,192.73685537]
[1767623902257,6.7023,134.37,134.25,104.68975537]
[1767623902459,94.7223,134.37,134.25,7.04735537]
[1767623902665,6.7023,134.37,134.25,7.04735537]
[1767623902869,6.7031,134.36,134.25,0.33945537]
[1767623903164,192.296,134.35,134.25,0.33945537]
[1767623903367,192.296,134.35,134.24,88.04]
[1767623903368,108.94558009,134.34,134.24,88.04]
[1767623903564,88.02,134.33,134.21,0.33945537]
[1767623904160,6.7051,134.32,134.21,0.33945537]
[1767623904461,4.66248009,134.38,134.26,104.3422]
[1767623904661,88.0,134.39,134.29,0.33945537]
[1767623905060,94.7016,134.39,134.27,88.04]
[1767623906070,6.7022,134.38,134.26,88.35945537]
[1767623906373,88.0,134.37,134.26,88.35945537]
[1767623906666,6.7022,134.38,134.26,88.35945537]
[1767623906867,108.93048009,134.36,134.22,0.33945537]
[1767623907268,192.274,134.35,134.22,0.33945537]
[1767623907465,104.2851,134.34,134.22,0.33945537]
[1767623907761,104.268,134.36,134.22,0.33945537]
[1767623907971,6.704,134.34,134.23,6.709]
[1767623908163,108.89778009,134.4,134.26,0.33945537]
[1767623908358,88.0,134.39,134.26,0.33945537]
[1767623908577,108.92048009,134.37,134.25,88.02]
[1767623908866,88.0,134.39,134.27,0.33945537]
[1767623909073,94.7017,134.39,134.28,7.04585537]
[1767623909458,104.2454,134.39,134.28,0.33945537]
[1767623909764,88.0,134.38,134.28,0.33945537]
[1767623910166,104.2763,134.35,134.23,0.33945537]
[1767623910564,88.0,134.34,134.23,0.33945537]
[1767623910968,88.0,134.34,134.22,88.02]
[1767623910969,196.94668009,134.34,134.22,88.02]
[1767623911169,6.7055,134.31,134.22,88.02]
[1767623911569,6.7055,134.31,134.17,104.4089]
[1767623911570,104.3202,134.29,134.16,92.68248009]
[1767623911764,104.3277,134.28,134.16,88.02]
[1767623912071,104.3277,134.28,134.15,0.34477481]
[1767623912379,108.98268009,134.29,134.16,6.7124]
[1767623912380,6.7082,134.26,134.16,6.7124]
[1767623912561,6.7082,134.26,134.15,0.34477481]
[1767623912767,6.7067,134.28,134.15,104.76917481]
[1767623912977,87.98,134.27,134.16,0.34477481]
[1767623913272,88.0,134.27,134.16,0.34477481]
[1767623913759,4.66248009,134.29,134.16,0.34477481]
[1767623913965,94.707,134.28,134.18,6.7114]
[1767623914161,88.0,134.28,134.16,0.34477481]
[1767623914364,6.706,134.3,134.19,6.7109]
[1767623914770,104.3156,134.3,134.18,88.02]
[1767623914979,104.3363,134.27,134.12,104.79367481]
[1767623915176,88.0,134.26,134.13,88.02]
[1767623915376,88.0,134.26,134.13,88.36477481]
[1767623915679,6.7084,134.25,134.15,6.713]
[1767623915978,94.7084,134.25,134.15,6.713]
[1767623916176,6.7095,134.23,134.14,88.02]
[1767623916470,88.0,134.25,134.14,88.02]
[1767623916668,108.99878009,134.27,134.14,88.02]
[1767623916669,4.66248009,134.27,134.14,88.36477481]
[1767623916878,6.7075,134.27,134.15,0.34477481]
[1767623917077,88.0,134.27,134.15,0.34477481]
[1767623917375,108.97808009,134.3,134.15,88.36477481]
[1767623917679,6.7074,134.27,134.17,6.712]
[1767623917866,104.3278,134.28,134.15,88.36477481]
[1767623918067,6.708,134.26,134.16,6.7126]
[1767623918478,104.3278,134.28,134.15,88.36477481]
[1767623918479,196.99938009,134.27,134.15,88.36477481]